[Event "Queens Festival Final-B 2022"]
[Site "Tornelo"]
[Date "2022.06.25"]
[Round "6.4"]
[White "Bian, Erin"]
[Black "Mariroh, Fariha"]
[Result "0-1"]
[ECO "B56"]
[WhiteElo "1811"]
[BlackElo "1839"]
[Annotator "NA RC"]
[PlyCount "160"]
[EventDate "2022.06.24"]
[EventType "tourn"]
[EventCountry "NET"]
[SourceTitle "playchess.com"]
[Source "ChessBase"]
[SourceQuality "1"]
[TimeControl "180+2"]

1. e4 {[%emt 0:00:02]} c5 {[%emt 0:00:04]} 2. Nf3 {[%emt 0:00:01]} d6 {[%emt 0:00:01]} 3. d4 {[%emt 0:00:01]} cxd4 {[%emt 0:00:00]} 4. Nxd4 {[%emt 0:00:01]} Nf6 {[%emt 0:00:00]} 5. Nc3 {[%emt 0:00:01]} Nc6 {[%emt 0:00:02]} 6. f3 {[%emt 0:00:02]} e5 {[%emt 0:00:02]} 7. Nb3 {[%emt 0:00:02]} Be6 {[%emt 0:00:02]} 8. Be3 {[%emt 0:00:04]} Be7 {[%emt 0:00:01]} 9. Qd2 {[%emt 0:00:02]} d5 {[%emt 0:00:02]} 10. exd5 {[%emt 0:00:06]} Nxd5 {[%emt 0:00:01]} 11. Nxd5 {[%emt 0:00:02]} Qxd5 {[%emt 0:00:01]} 12. Qxd5 {[%emt 0:00:05]} Bxd5 {[%emt 0:00:00]} 13. O-O-O {[%emt 0:00:02]} O-O-O {[%emt 0:00:03]} 14. Bd3 {[%emt 0:00:14]} Be6 {[%emt 0:00:06]} 15. Nc5 {[%emt 0:00:04]} Bxc5 {[%emt 0:00:03]} 16. Bxc5 {[%emt 0:00:02]} Nd4 {[%emt 0:00:11]} 17. c3 {[%emt 0:00:06]} Nc6 {[%emt 0:00:02]} 18. b3 {[%emt 0:00:13]} f5 {[%emt 0:00:23]} 19. Bb5 {[%emt 0:00:05]} Kc7 {[%emt 0:00:21]} 20. Be3 {[%emt 0:00:37]} h6 {[%emt 0:00:12]} 21. h4 {[%emt 0:00:04]} b6 {[%emt 0:00:18]} 22. Bf2 {[%emt 0:00:20]} Ne7 {[%emt 0:00:08]} 23. Bg3 {[%emt 0:00:11]} f4 {[%emt 0:00:01]} 24. Bf2 {[%emt 0:00:02]} Nd5 {[%emt 0:00:09]} 25. Kc2 {[%emt 0:00:07]} Bf5+ {[%emt 0:00:27]} 26. Bd3 {[%emt 0:00:04]} Bxd3+ {[%emt 0:00:03]} 27. Rxd3 {[%emt 0:00:01]} Nf6 {[%emt 0:00:04]} 28. Rhd1 {[%emt 0:00:08]} e4 {[%emt 0:00:04]} 29. fxe4 {[%emt 0:00:09]} Nxe4 {[%emt 0:00:03]} 30. Bd4 {[%emt 0:00:03]} Kc6 {[%emt 0:00:50]} 31. Rf1 {[%emt 0:00:12]} Rhf8 {[%emt 0:00:14]} 32. Bxg7 {[%emt 0:00:05]} Rxd3 {[%emt 0:00:06]} 33. Kxd3 {[%emt 0:00:02]} Nc5+ {[%emt 0:00:00]} 34. Kc2 {[%emt 0:00:01]} Rf7 {[%emt 0:00:02]} 35. Bxh6 {[%emt 0:00:02]} f3 {[%emt 0:00:00]} 36. Rxf3 {[%emt 0:00:03]} Rh7 {[%emt 0:00:01]} 37. Bg5 {[%emt 0:00:02]} Rd7 {[%emt 0:00:02]} 38. Re3 {[%emt 0:00:05]} Rf7 {[%emt 0:00:03]} 39. Re2 {[%emt 0:00:04]} a5 {[%emt 0:00:05]} 40. a4 {[%emt 0:00:02]} Nd7 {[%emt 0:00:02]} 41. g4 {[%emt 0:00:05]} Nc5 {[%emt 0:00:02]} 42. Be3 {[%emt 0:00:06]} Ne6 {[%emt 0:00:02]} 43. g5 {[%emt 0:00:04]} Ng7 {[%emt 0:00:03]} 44. Bd4 {[%emt 0:00:04]} Nf5 {[%emt 0:00:02]} 45. Rf2 {[%emt 0:00:04]} Nxd4+ {[%emt 0:00:00]} 46. cxd4 {[%emt 0:00:03]} Rxf2+ {[%emt 0:00:01]} 47. Kd3 {[%emt 0:00:02]} Rh2 {[%emt 0:00:01]} 48. Ke4 {[%emt 0:00:03]} Rxh4+ {[%emt 0:00:01]} 49. Ke5 {[%emt 0:00:03]} Rg4 {[%emt 0:00:01]} 50. d5+ {[%emt 0:00:03]} Kd7 {[%emt 0:00:02]} 51. Kf5 {[%emt 0:00:01]} Rd4 {[%emt 0:00:02]} 52. Ke5 {[%emt 0:00:01]} Rg4 {[%emt 0:00:02]} 53. Kf5 {[%emt 0:00:01]} Rg1 {[%emt 0:00:01]} 54. g6 {[%emt 0:00:02]} Kd6 {[%emt 0:00:01]} 55. Kf6 {[%emt 0:00:01]} Kxd5 {[%emt 0:00:01]} 56. g7 {[%emt 0:00:01]} Kc5 {[%emt 0:00:03]} 57. Kf7 {[%emt 0:00:01]} Kb4 {[%emt 0:00:01]} 58. g8=Q {[%emt 0:00:01]} Rxg8 {[%emt 0:00:01]} 59. Kxg8 {[%emt 0:00:02]} Kxb3 {[%emt 0:00:00]} 60. Kf7 {[%emt 0:00:01]} Kxa4 {[%emt 0:00:01]} 61. Ke6 {[%emt 0:00:00]} b5 {[%emt 0:00:01]} 62. Kd5 {[%emt 0:00:00]} b4 {[%emt 0:00:00]} 63. Kd4 {[%emt 0:00:00]} Kb3 {[%emt 0:00:01]} 64. Kd3 {[%emt 0:00:00]} a4 {[%emt 0:00:01]} 65. Kd2 {[%emt 0:00:00]} Kb2 {[%emt 0:00:01]} 66. Kd1 {[%emt 0:00:02]} a3 {[%emt 0:00:00]} 67. Kd2 {[%emt 0:00:01]} a2 {[%emt 0:00:00]} 68. Kd1 {[%emt 0:00:00]} b3 {[%emt 0:00:00]} 69. Kd2 {[%emt 0:00:01]} Kb1 {[%emt 0:00:01]} 70. Kc3 {[%emt 0:00:01]} b2 {[%emt 0:00:00]} 71. Kb3 {[%emt 0:00:01]} a1=Q {[%emt 0:00:02]} 72. Kc3 {[%emt 0:00:00]} Qa4 {[%emt 0:00:02]} 73. Kd2 {[%emt 0:00:03]} Qd4+ {[%emt 0:00:01]} 74. Ke2 {[%emt 0:00:01]} Qe4+ {[%emt 0:00:02]} 75. Kd2 {[%emt 0:00:01]} Qd5+ {[%emt 0:00:02]} 76. Ke2 {[%emt 0:00:01]} Kc2 {[%emt 0:00:02]} 77. Ke1 {[%emt 0:00:01]} b1=Q+ {[%emt 0:00:02]} 78. Kf2 {[%emt 0:00:00]} Qf5+ {[%emt 0:00:02]} 79. Kg3 {[%emt 0:00:02]} Qg1+ {[%emt 0:00:01]} 80. Kh4 {[%emt 0:00:01]} Qh7# {[%emt 0:00:01]} 0-1

[Event "Queens Festival Final-B 2022"]
[Site "Tornelo"]
[Date "2022.06.25"]
[Round "6.5"]
[White "Pang, Ashley"]
[Black "Francis, Onkemetse"]
[Result "1-0"]
[ECO "A07"]
[WhiteElo "1967"]
[BlackElo "1777"]
[Annotator "NA RC"]
[PlyCount "71"]
[EventDate "2022.06.24"]
[EventType "tourn"]
[EventCountry "NET"]
[SourceTitle "playchess.com"]
[Source "ChessBase"]
[SourceQuality "1"]
[TimeControl "180+2"]

1. g3 {[%emt 0:00:02]} Nf6 {[%emt 0:00:07]} 2. Bg2 {[%emt 0:00:02]} g6 {[%emt 0:00:03]} 3. Nf3 {[%emt 0:00:02]} Bg7 {[%emt 0:00:01]} 4. O-O {[%emt 0:00:02]} O-O {[%emt 0:00:02]} 5. d3 {[%emt 0:00:04]} d5 {[%emt 0:00:03]} 6. Nbd2 {[%emt 0:00:02]} c6 {[%emt 0:00:04]} 7. c3 {[%emt 0:00:02]} Nbd7 {[%emt 0:00:09]} 8. e4 {[%emt 0:00:01]} dxe4 {[%emt 0:00:06]} 9. dxe4 {[%emt 0:00:04]} e5 {[%emt 0:00:03]} 10. Qe2 {[%emt 0:00:06]} Qe7 {[%emt 0:00:04]} 11. Rd1 {[%emt 0:00:06]} Re8 {[%emt 0:00:13]} 12. Nc4 {[%emt 0:00:08]} h6 {[%emt 0:00:16]} 13. Nd6 {[%emt 0:00:16]} Rf8 {[%emt 0:00:05]} 14. Be3 {[%emt 0:00:23]} b6 {[%emt 0:00:09]} 15. Rd2 {[%emt 0:00:15]} Nb8 {[%emt 0:00:08]} 16. Nxc8 {[%emt 0:00:08]} Rxc8 {[%emt 0:00:03]} 17. Rad1 {[%emt 0:00:02]} Nbd7 {[%emt 0:00:03]} 18. Bh3 {[%emt 0:00:02]} Rd8 {[%emt 0:00:06]} 19. Qc4 {[%emt 0:00:07]} c5 {[%emt 0:00:16]} 20. Nh4 {[%emt 0:00:06]} Nf8 {[%emt 0:00:14]} 21. f3 {[%emt 0:00:28]} Rxd2 {[%emt 0:00:03]} 22. Rxd2 {[%emt 0:00:03]} Rd8 {[%emt 0:00:01]} 23. Qe2 {[%emt 0:00:10]} Ne6 {[%emt 0:00:09]} 24. Qd1 {[%emt 0:00:16]} Rxd2 {[%emt 0:00:04]} 25. Qxd2 {[%emt 0:00:01]} Nd8 {[%emt 0:00:07]} 26. Bxh6 {[%emt 0:00:06]} Nc6 {[%emt 0:00:04]} 27. Bg5 {[%emt 0:00:03]} Qc7 {[%emt 0:00:06]} 28. Ng2 {[%emt 0:00:04]} Nh5 {[%emt 0:00:04]} 29. Ne3 {[%emt 0:00:05]} Na5 {[%emt 0:00:05]} 30. Nd5 {[%emt 0:00:02]} Qb7 {[%emt 0:00:05]} 31. b3 {[%emt 0:00:09]} Bf8 {[%emt 0:00:18]} 32. Bg4 {[%emt 0:00:10]} Ng7 {[%emt 0:00:03]} 33. Nf6+ {[%emt 0:00:05]} Kh8 {[%emt 0:00:02]} 34. Qg2 {[%emt 0:00:02]} Ne6 {[%emt 0:00:13]} 35. Qh3+ {[%emt 0:00:03]} Kg7 {[%emt 0:00:02]} 36. Qh7# {[%emt 0:00:04]} 1-0

[Event "Queens Festival Final-B 2022"]
[Site "Tornelo"]
[Date "2022.06.25"]
[Round "7.1"]
[White "Francis, Onkemetse"]
[Black "Masoumi, Sahar"]
[Result "0-1"]
[ECO "B23"]
[WhiteElo "1777"]
[BlackElo "2004"]
[Annotator "NA RC"]
[PlyCount "74"]
[EventDate "2022.06.24"]
[EventType "tourn"]
[EventCountry "NET"]
[SourceTitle "playchess.com"]
[Source "ChessBase"]
[SourceQuality "1"]
[TimeControl "180+2"]

1. e4 {[%emt 0:00:02]} c5 {[%emt 0:00:04]} 2. Nc3 {[%emt 0:00:04]} Nc6 {[%emt 0:00:02]} 3. f4 {[%emt 0:00:04]} g6 {[%emt 0:00:01]} 4. Nf3 {[%emt 0:00:01]} Bg7 {[%emt 0:00:01]} 5. Bc4 {[%emt 0:00:02]} e6 {[%emt 0:00:02]} 6. d3 {[%emt 0:00:17]} Nge7 {[%emt 0:00:01]} 7. Bb3 {[%emt 0:00:02]} O-O {[%emt 0:00:02]} 8. O-O {[%emt 0:00:02]} d5 {[%emt 0:00:03]} 9. Qe1 {[%emt 0:00:08]} Nd4 {[%emt 0:00:16]} 10. Nxd4 {[%emt 0:00:03]} cxd4 {[%emt 0:00:05]} 11. Nb5 {[%emt 0:00:18]} dxe4 {[%emt 0:00:05]} 12. dxe4 {[%emt 0:00:09]} d3 {[%emt 0:00:02]} 13. Nc3 {[%emt 0:00:11]} dxc2 {[%emt 0:00:08]} 14. Bxc2 {[%emt 0:00:03]} Nc6 {[%emt 0:00:01]} 15. Be3 {[%emt 0:00:07]} Nb4 {[%emt 0:00:04]} 16. Bb3 {[%emt 0:00:10]} Bd7 {[%emt 0:00:09]} 17. Rd1 {[%emt 0:00:06]} Qc7 {[%emt 0:00:03]} 18. Qf2 {[%emt 0:00:19]} b6 {[%emt 0:00:16]} 19. a3 {[%emt 0:00:09]} Na6 {[%emt 0:00:06]} 20. Rc1 {[%emt 0:00:06]} Qb7 {[%emt 0:00:07]} 21. Bc2 {[%emt 0:00:13]} Rac8 {[%emt 0:00:03]} 22. f5 {[%emt 0:00:04]} Nc5 {[%emt 0:00:17]} 23. Qh4 {[%emt 0:00:14]} exf5 {[%emt 0:00:55]} 24. exf5 {[%emt 0:00:04]} Bc6 {[%emt 0:00:02]} 25. Qh3 {[%emt 0:00:13]} Rfe8 {[%emt 0:00:05]} 26. Bh6 {[%emt 0:00:05]} Ne4 {[%emt 0:00:08]} 27. fxg6 {[%emt 0:00:07]} hxg6 {[%emt 0:00:35]} 28. Bxg7 {[%emt 0:00:16]} Kxg7 {[%emt 0:00:08]} 29. Nxe4 {[%emt 0:00:02]} Bxe4 {[%emt 0:00:03]} 30. Bxe4 {[%emt 0:00:03]} Qxe4 {[%emt 0:00:04]} 31. Rce1 {[%emt 0:00:08]} Qd5 {[%emt 0:00:03]} 32. Qf3 {[%emt 0:00:05]} Qd4+ {[%emt 0:00:02]} 33. Kh1 {[%emt 0:00:04]} Qc4 {[%emt 0:00:02]} 34. h3 {[%emt 0:00:04]} Kg8 {[%emt 0:00:02]} 35. Qf6 {[%emt 0:00:02]} Rxe1 {[%emt 0:00:02]} 36. Rxe1 {[%emt 0:00:03]} Qd5 {[%emt 0:00:01]} 37. Rf1 {[%emt 0:00:03]} Re8 {[%emt 0:00:02]} 0-1

[Event "Queens Festival Final-B 2022"]
[Site "Tornelo"]
[Date "2022.06.25"]
[Round "7.2"]
[White "Mariroh, Fariha"]
[Black "Pang, Ashley"]
[Result "0-1"]
[ECO "C42"]
[WhiteElo "1839"]
[BlackElo "1967"]
[Annotator "NA RC"]
[PlyCount "66"]
[EventDate "2022.06.24"]
[EventType "tourn"]
[EventCountry "NET"]
[SourceTitle "playchess.com"]
[Source "ChessBase"]
[SourceQuality "1"]
[TimeControl "180+2"]

1. e4 {[%emt 0:00:02]} e5 {[%emt 0:00:05]} 2. Nf3 {[%emt 0:00:01]} Nf6 {[%emt 0:00:01]} 3. Nxe5 {[%emt 0:00:02]} d6 {[%emt 0:00:01]} 4. Nf3 {[%emt 0:00:02]} Nxe4 {[%emt 0:00:01]} 5. d4 {[%emt 0:00:00]} d5 {[%emt 0:00:01]} 6. Bd3 {[%emt 0:00:01]} Bd6 {[%emt 0:00:02]} 7. O-O {[%emt 0:00:03]} O-O {[%emt 0:00:02]} 8. c4 {[%emt 0:00:10]} c6 {[%emt 0:00:01]} 9. Nc3 {[%emt 0:00:03]} Bf5 {[%emt 0:00:26]} 10. Be3 {[%emt 0:00:14]} Re8 {[%emt 0:00:18]} 11. Rc1 {[%emt 0:00:04]} Na6 {[%emt 0:00:08]} 12. a3 {[%emt 0:00:25]} Rc8 {[%emt 0:00:22]} 13. b4 {[%emt 0:00:08]} Nc7 {[%emt 0:00:24]} 14. c5 {[%emt 0:00:12]} Bf8 {[%emt 0:00:05]} 15. a4 {[%emt 0:00:04]} g6 {[%emt 0:00:06]} 16. b5 {[%emt 0:00:02]} Bg7 {[%emt 0:00:08]} 17. Bf4 {[%emt 0:00:27]} Ne6 {[%emt 0:00:12]} 18. Be3 {[%emt 0:00:21]} Nxc3 {[%emt 0:00:23]} 19. Rxc3 {[%emt 0:00:03]} Bg4 {[%emt 0:00:02]} 20. Be2 {[%emt 0:00:04]} Bxf3 {[%emt 0:00:19]} 21. Bxf3 {[%emt 0:00:02]} Qa5 {[%emt 0:00:02]} 22. Rc1 {[%emt 0:00:36]} cxb5 {[%emt 0:00:18]} 23. axb5 {[%emt 0:00:03]} Qxb5 {[%emt 0:00:11]} 24. Bxd5 {[%emt 0:00:03]} Rcd8 {[%emt 0:00:09]} 25. Bc4 {[%emt 0:00:02]} Qd7 {[%emt 0:00:02]} 26. Bxe6 {[%emt 0:00:08]} Rxe6 {[%emt 0:00:02]} 27. Qb3 {[%emt 0:00:14]} Bxd4 {[%emt 0:00:03]} 28. Rcd1 {[%emt 0:00:02]} Re4 {[%emt 0:00:02]} 29. Qd3 {[%emt 0:00:12]} Qe6 {[%emt 0:00:02]} 30. Bxd4 {[%emt 0:00:06]} Rexd4 {[%emt 0:00:01]} 31. Qxd4 {[%emt 0:00:06]} Rxd4 {[%emt 0:00:00]} 32. Rxd4 {[%emt 0:00:01]} Qe5 {[%emt 0:00:02]} 33. Rd8+ {[%emt 0:00:03]} Kg7 {[%emt 0:00:01]} 0-1

[Event "Queens Festival Final-B 2022"]
[Site "Tornelo"]
[Date "2022.06.25"]
[Round "7.3"]
[White "Deak-Sala, Emilia"]
[Black "Bian, Erin"]
[Result "0-1"]
[ECO "C54"]
[WhiteElo "1883"]
[BlackElo "1811"]
[Annotator "NA RC"]
[PlyCount "102"]
[EventDate "2022.06.24"]
[EventType "tourn"]
[EventCountry "NET"]
[SourceTitle "playchess.com"]
[Source "ChessBase"]
[SourceQuality "1"]
[TimeControl "180+2"]

1. e4 {[%emt 0:00:02]} e5 {[%emt 0:00:04]} 2. Nf3 {[%emt 0:00:02]} Nc6 {[%emt 0:00:02]} 3. Bc4 {[%emt 0:00:02]} Bc5 {[%emt 0:00:00]} 4. d3 {[%emt 0:00:02]} Nf6 {[%emt 0:00:02]} 5. c3 {[%emt 0:00:01]} O-O {[%emt 0:00:02]} 6. Bb3 {[%emt 0:00:02]} d5 {[%emt 0:00:02]} 7. Qe2 {[%emt 0:00:01]} Re8 {[%emt 0:00:07]} 8. Nbd2 {[%emt 0:00:03]} Bg4 {[%emt 0:00:06]} 9. h3 {[%emt 0:00:03]} Bh5 {[%emt 0:00:02]} 10. Nf1 {[%emt 0:00:02]} dxe4 {[%emt 0:00:07]} 11. dxe4 {[%emt 0:00:01]} Bg6 {[%emt 0:00:01]} 12. Ng3 {[%emt 0:00:02]} Qe7 {[%emt 0:00:07]} 13. O-O {[%emt 0:00:02]} Rad8 {[%emt 0:00:03]} 14. Bg5 {[%emt 0:00:08]} h6 {[%emt 0:00:03]} 15. Bc1 {[%emt 0:00:04]} Nh5 {[%emt 0:00:08]} 16. Nxh5 {[%emt 0:01:08]} Bxh5 {[%emt 0:00:03]} 17. Be3 {[%emt 0:00:02]} Na5 {[%emt 0:00:26]} 18. Bxc5 {[%emt 0:00:11]} Qxc5 {[%emt 0:00:04]} 19. Bc2 {[%emt 0:00:17]} Nc4 {[%emt 0:00:05]} 20. Bb3 {[%emt 0:00:20]} Nd2 {[%emt 0:00:07]} 21. g4 {[%emt 0:00:24]} Nxb3 {[%emt 0:00:10]} 22. axb3 {[%emt 0:00:02]} Bg6 {[%emt 0:00:02]} 23. Nh4 {[%emt 0:00:04]} Bh7 {[%emt 0:00:02]} 24. Nf5 {[%emt 0:00:03]} Bxf5 {[%emt 0:00:03]} 25. gxf5 {[%emt 0:00:02]} Qe7 {[%emt 0:00:02]} 26. Kh2 {[%emt 0:00:04]} Qg5 {[%emt 0:00:04]} 27. Rg1 {[%emt 0:00:08]} Qf4+ {[%emt 0:00:02]} 28. Kh1 {[%emt 0:00:27]} Rd2 {[%emt 0:00:03]} 29. Qg4 {[%emt 0:00:02]} Qxg4 {[%emt 0:00:01]} 30. Rxg4 {[%emt 0:00:02]} f6 {[%emt 0:00:13]} 31. Rag1 {[%emt 0:00:02]} Re7 {[%emt 0:00:01]} 32. f4 {[%emt 0:00:02]} exf4 {[%emt 0:00:03]} 33. Rxf4 {[%emt 0:00:01]} Rxb2 {[%emt 0:00:01]} 34. Rg2 {[%emt 0:00:01]} Rxb3 {[%emt 0:00:02]} 35. Ra2 {[%emt 0:00:02]} a6 {[%emt 0:00:04]} 36. Rc2 {[%emt 0:00:02]} Re5 {[%emt 0:00:02]} 37. Kg2 {[%emt 0:00:02]} Rc5 {[%emt 0:00:02]} 38. Rf3 {[%emt 0:00:01]} Rc4 {[%emt 0:00:01]} 39. Re3 {[%emt 0:00:01]} Kf7 {[%emt 0:00:01]} 40. Kf3 {[%emt 0:00:02]} Ke7 {[%emt 0:00:01]} 41. Rd3 {[%emt 0:00:01]} a5 {[%emt 0:00:04]} 42. Ke3 {[%emt 0:00:01]} a4 {[%emt 0:00:01]} 43. Ke2 {[%emt 0:00:02]} a3 {[%emt 0:00:02]} 44. Ke3 {[%emt 0:00:02]} Rb2 {[%emt 0:00:03]} 45. Rc1 {[%emt 0:00:01]} a2 {[%emt 0:00:02]} 46. Ra1 {[%emt 0:00:02]} Ra4 {[%emt 0:00:01]} 47. Rdd1 {[%emt 0:00:03]} Ra3 {[%emt 0:00:02]} 48. Kd3 {[%emt 0:00:02]} Rh2 {[%emt 0:00:03]} 49. Kc4 {[%emt 0:00:03]} Rxh3 {[%emt 0:00:01]} 50. Kb4 {[%emt 0:00:01]} Rhxc3 {[%emt 0:00:02]} 51. Rxa2 {[%emt 0:00:03]} c5+ {[%emt 0:00:01]} 0-1

[Event "Queens Festival Final-B 2022"]
[Site "Tornelo"]
[Date "2022.06.25"]
[Round "7.4"]
[White "Shohradowa, Lala"]
[Black "Mammadova, Aysel"]
[Result "1-0"]
[ECO "E11"]
[WhiteElo "1856"]
[BlackElo "1893"]
[Annotator "NA RC"]
[PlyCount "135"]
[EventDate "2022.06.24"]
[EventType "tourn"]
[EventCountry "NET"]
[SourceTitle "playchess.com"]
[Source "ChessBase"]
[SourceQuality "1"]
[TimeControl "180+2"]

1. d4 {[%emt 0:00:02]} Nf6 {[%emt 0:00:05]} 2. c4 {[%emt 0:00:02]} e6 {[%emt 0:00:01]} 3. g3 {[%emt 0:00:06]} Bb4+ {[%emt 0:00:03]} 4. Bd2 {[%emt 0:00:02]} Qe7 {[%emt 0:00:02]} 5. Bg2 {[%emt 0:00:02]} O-O {[%emt 0:00:02]} 6. a3 {[%emt 0:00:03]} Bxd2+ {[%emt 0:00:03]} 7. Nxd2 {[%emt 0:00:02]} d6 {[%emt 0:00:02]} 8. Ngf3 {[%emt 0:00:07]} Nbd7 {[%emt 0:00:02]} 9. O-O {[%emt 0:00:02]} e5 {[%emt 0:00:04]} 10. dxe5 {[%emt 0:00:06]} Nxe5 {[%emt 0:00:04]} 11. Nxe5 {[%emt 0:00:03]} dxe5 {[%emt 0:00:01]} 12. Qc2 {[%emt 0:00:05]} c6 {[%emt 0:00:06]} 13. Rfd1 {[%emt 0:00:03]} Bg4 {[%emt 0:00:05]} 14. Ne4 {[%emt 0:00:13]} Bf5 {[%emt 0:00:07]} 15. Nxf6+ {[%emt 0:00:07]} Qxf6 {[%emt 0:00:02]} 16. Be4 {[%emt 0:00:03]} Bg6 {[%emt 0:00:12]} 17. c5 {[%emt 0:00:11]} Rfd8 {[%emt 0:00:03]} 18. a4 {[%emt 0:00:03]} Rxd1+ {[%emt 0:00:06]} 19. Rxd1 {[%emt 0:00:02]} Rd8 {[%emt 0:00:02]} 20. Bxg6 {[%emt 0:00:06]} hxg6 {[%emt 0:00:04]} 21. Rd3 {[%emt 0:00:21]} Qe7 {[%emt 0:00:10]} 22. b4 {[%emt 0:00:10]} Kf8 {[%emt 0:00:11]} 23. Kf1 {[%emt 0:00:21]} Ke8 {[%emt 0:00:04]} 24. Ke1 {[%emt 0:00:06]} f5 {[%emt 0:00:04]} 25. Qc3 {[%emt 0:00:07]} e4 {[%emt 0:00:08]} 26. Rxd8+ {[%emt 0:00:03]} Kxd8 {[%emt 0:00:01]} 27. Qd4+ {[%emt 0:00:02]} Kc7 {[%emt 0:00:10]} 28. Kd2 {[%emt 0:00:03]} g5 {[%emt 0:00:05]} 29. e3 {[%emt 0:00:04]} b6 {[%emt 0:00:02]} 30. cxb6+ {[%emt 0:00:03]} axb6 {[%emt 0:00:02]} 31. a5 {[%emt 0:00:02]} bxa5 {[%emt 0:00:20]} 32. Qa7+ {[%emt 0:00:03]} Kd6 {[%emt 0:00:06]} 33. Qc5+ {[%emt 0:00:02]} Kd7 {[%emt 0:00:02]} 34. Qxf5+ {[%emt 0:00:01]} Ke8 {[%emt 0:00:07]} 35. Qc8+ {[%emt 0:00:11]} Kf7 {[%emt 0:00:05]} 36. Qf5+ {[%emt 0:00:02]} Ke8 {[%emt 0:00:05]} 37. Qxa5 {[%emt 0:00:04]} Qd6+ {[%emt 0:00:03]} 38. Ke1 {[%emt 0:00:02]} Kf7 {[%emt 0:00:12]} 39. Qf5+ {[%emt 0:00:03]} Kg8 {[%emt 0:00:03]} 40. Qc8+ {[%emt 0:00:03]} Kh7 {[%emt 0:00:06]} 41. Qf5+ {[%emt 0:00:02]} Kg8 {[%emt 0:00:02]} 42. Qxe4 {[%emt 0:00:01]} Qf6 {[%emt 0:00:04]} 43. Qc4+ {[%emt 0:00:03]} Kh7 {[%emt 0:00:03]} 44. Kf1 {[%emt 0:00:01]} Qa1+ {[%emt 0:00:09]} 45. Kg2 {[%emt 0:00:02]} Qf6 {[%emt 0:00:03]} 46. h4 {[%emt 0:00:03]} Kg6 {[%emt 0:00:29]} 47. hxg5 {[%emt 0:00:03]} Qxg5 {[%emt 0:00:02]} 48. Qh4 {[%emt 0:00:01]} Qb5 {[%emt 0:00:04]} 49. Qe4+ {[%emt 0:00:03]} Kh6 {[%emt 0:00:04]} 50. Qe6+ {[%emt 0:00:02]} g6 {[%emt 0:00:02]} 51. Qd6 {[%emt 0:00:04]} Kg7 {[%emt 0:00:04]} 52. g4 {[%emt 0:00:02]} Kh7 {[%emt 0:00:02]} 53. Qe7+ {[%emt 0:00:03]} Kh6 {[%emt 0:00:03]} 54. Qf8+ {[%emt 0:00:09]} Kh7 {[%emt 0:00:03]} 55. Qc5 {[%emt 0:00:02]} Qb7 {[%emt 0:00:04]} 56. g5 {[%emt 0:00:03]} Qd7 {[%emt 0:00:03]} 57. Kg3 {[%emt 0:00:02]} Qc7+ {[%emt 0:00:03]} 58. f4 {[%emt 0:00:02]} Qd7 {[%emt 0:00:03]} 59. Qe5 {[%emt 0:00:07]} Qf7 {[%emt 0:00:04]} 60. Qf6 {[%emt 0:00:03]} Qd7 {[%emt 0:00:02]} 61. Qd4 {[%emt 0:00:07]} Qe7 {[%emt 0:00:03]} 62. e4 {[%emt 0:00:03]} Qc7 {[%emt 0:00:02]} 63. Kg4 {[%emt 0:00:03]} Qe7 {[%emt 0:00:03]} 64. f5 {[%emt 0:00:02]} gxf5+ {[%emt 0:00:03]} 65. exf5 {[%emt 0:00:03]} Qe2+ {[%emt 0:00:02]} 66. Kf4 {[%emt 0:00:01]} Qh2+ {[%emt 0:00:03]} 67. Ke4 {[%emt 0:00:03]} Qh4+ {[%emt 0:00:03]} 68. Ke5 {[%emt 0:00:04]} 1-0

[Event "Queens Festival Final-B 2022"]
[Site "Tornelo"]
[Date "2022.06.25"]
[Round "7.5"]
[White "Scarsi, Anna Laura"]
[Black "Vujcic, Milena"]
[Result "0-1"]
[ECO "C50"]
[WhiteElo "1867"]
[BlackElo "1987"]
[Annotator "NA RC"]
[PlyCount "48"]
[EventDate "2022.06.24"]
[EventType "tourn"]
[EventCountry "NET"]
[SourceTitle "playchess.com"]
[Source "ChessBase"]
[SourceQuality "1"]
[TimeControl "180+2"]

1. e4 {[%emt 0:00:02]} e5 {[%emt 0:00:04]} 2. Nf3 {[%emt 0:00:03]} Nc6 {[%emt 0:00:04]} 3. Bc4 {[%emt 0:00:01]} Bc5 {[%emt 0:00:02]} 4. d4 {[%emt 0:00:02]} Bxd4 {[%emt 0:00:02]} 5. Nxd4 {[%emt 0:00:07]} Nxd4 {[%emt 0:00:02]} 6. O-O {[%emt 0:00:01]} Nf6 {[%emt 0:00:04]} 7. Bg5 {[%emt 0:00:08]} h6 {[%emt 0:00:09]} 8. Bh4 {[%emt 0:00:02]} g5 {[%emt 0:00:07]} 9. f4 {[%emt 0:00:10]} d6 {[%emt 0:00:21]} 10. fxg5 {[%emt 0:00:10]} d5 {[%emt 0:00:48]} 11. exd5 {[%emt 0:01:00]} Ng4 {[%emt 0:00:25]} 12. d6 {[%emt 0:00:19]} Rh7 {[%emt 0:00:08]} 13. Qd3 {[%emt 0:00:05]} Rg7 {[%emt 0:00:29]} 14. dxc7 {[%emt 0:00:22]} Qe7 {[%emt 0:00:05]} 15. c3 {[%emt 0:00:27]} hxg5 {[%emt 0:00:04]} 16. Bg3 {[%emt 0:00:02]} Nc6 {[%emt 0:00:06]} 17. Na3 {[%emt 0:00:10]} e4 {[%emt 0:00:18]} 18. Qe2 {[%emt 0:00:15]} a6 {[%emt 0:00:09]} 19. Rae1 {[%emt 0:00:04]} f5 {[%emt 0:00:02]} 20. Bf2 {[%emt 0:00:05]} Qe5 {[%emt 0:00:04]} 21. Bg3 {[%emt 0:00:03]} f4 {[%emt 0:00:01]} 22. Bf2 {[%emt 0:00:03]} e3 {[%emt 0:00:02]} 23. Qf3 {[%emt 0:00:03]} Bf5 {[%emt 0:00:04]} 24. Bxe3 {[%emt 0:00:03]} Nxe3 {[%emt 0:00:03]} 0-1

[Event "Queens Festival Final-B 2022"]
[Site "Tornelo"]
[Date "2022.06.25"]
[Round "8.1"]
[White "Masoumi, Sahar"]
[Black "Vujcic, Milena"]
[Result "1-0"]
[ECO "E73"]
[WhiteElo "2004"]
[BlackElo "1987"]
[Annotator "NA RC"]
[PlyCount "69"]
[EventDate "2022.06.24"]
[EventType "tourn"]
[EventCountry "NET"]
[SourceTitle "playchess.com"]
[Source "ChessBase"]
[SourceQuality "1"]
[TimeControl "180+2"]

1. d4 {[%emt 0:00:02]} Nf6 {[%emt 0:00:04]} 2. c4 {[%emt 0:00:02]} g6 {[%emt 0:00:01]} 3. Nc3 {[%emt 0:00:01]} Bg7 {[%emt 0:00:02]} 4. e4 {[%emt 0:00:01]} d6 {[%emt 0:00:01]} 5. Be2 {[%emt 0:00:02]} O-O {[%emt 0:00:02]} 6. Be3 {[%emt 0:00:02]} e5 {[%emt 0:00:05]} 7. d5 {[%emt 0:00:01]} a5 {[%emt 0:00:01]} 8. g4 {[%emt 0:00:03]} Na6 {[%emt 0:00:02]} 9. h4 {[%emt 0:00:04]} Nc5 {[%emt 0:00:03]} 10. f3 {[%emt 0:00:02]} Nfd7 {[%emt 0:00:06]} 11. Qd2 {[%emt 0:00:03]} Nb6 {[%emt 0:00:18]} 12. O-O-O {[%emt 0:00:06]} f5 {[%emt 0:00:13]} 13. gxf5 {[%emt 0:00:08]} gxf5 {[%emt 0:00:01]} 14. Nh3 {[%emt 0:00:10]} f4 {[%emt 0:00:03]} 15. Bf2 {[%emt 0:00:08]} Nba4 {[%emt 0:00:09]} 16. Rdg1 {[%emt 0:00:06]} Kh8 {[%emt 0:00:02]} 17. h5 {[%emt 0:00:06]} Bh6 {[%emt 0:00:03]} 18. Kb1 {[%emt 0:00:20]} Qe8 {[%emt 0:00:05]} 19. Nb5 {[%emt 0:00:06]} Qd8 {[%emt 0:00:06]} 20. Qe1 {[%emt 0:00:03]} Bd7 {[%emt 0:00:05]} 21. Bh4 {[%emt 0:00:03]} Qc8 {[%emt 0:00:02]} 22. Ng5 {[%emt 0:00:05]} Bxg5 {[%emt 0:00:04]} 23. Bxg5 {[%emt 0:00:02]} Bxb5 {[%emt 0:00:09]} 24. cxb5 {[%emt 0:00:02]} c6 {[%emt 0:00:01]} 25. Rg2 {[%emt 0:00:09]} cxb5 {[%emt 0:00:05]} 26. Rhg1 {[%emt 0:00:03]} Qd7 {[%emt 0:00:08]} 27. Qh4 {[%emt 0:00:08]} Qf7 {[%emt 0:00:05]} 28. Bxb5 {[%emt 0:00:08]} Nb6 {[%emt 0:00:26]} 29. Bh6 {[%emt 0:00:11]} Rg8 {[%emt 0:00:05]} 30. Bg7+ {[%emt 0:00:04]} Rxg7 {[%emt 0:00:01]} 31. Rxg7 {[%emt 0:00:03]} Qf8 {[%emt 0:00:12]} 32. Rg8+ {[%emt 0:00:07]} Qxg8 {[%emt 0:00:02]} 33. Rxg8+ {[%emt 0:00:02]} Rxg8 {[%emt 0:00:04]} 34. Qf6+ {[%emt 0:00:02]} Rg7 {[%emt 0:00:02]} 35. h6 {[%emt 0:00:01]} 1-0